[Event "*** SCC Grand Prix: Titled Tuesday Blitz"]
[Site "Chess.com"]
[Date "2020.08.25"]
[Round "2"]
[White "Misticpikachu"]
[Black "giantslayer83"]
[Result "0-1"]
[WhiteElo "2305"]
[BlackElo "2714"]
[TimeControl "180+1"]
[EndTime "10:20:02 PDT"]
[Termination "giantslayer83 won by checkmate"]

1. c4 {[%clk 0:03:00.9]} 1... e5 {[%clk 0:02:55.8]} 2. Nc3 {[%clk 0:03:00.1]}
2... Nf6 {[%clk 0:02:55.4]} 3. Nf3 {[%clk 0:02:56.7]} 3... Nc6 {[%clk
0:02:54.5]} 4. e4 {[%clk 0:02:56.4]} 4... Bb4 {[%clk 0:02:46.7]} 5. d3 {[%clk
0:02:53.8]} 5... d6 {[%clk 0:02:46.6]} 6. a3 {[%clk 0:02:53.5]} 6... Bc5 {[%clk
0:02:46.1]} 7. Bg5 {[%clk 0:02:38.8]} 7... h6 {[%clk 0:02:43.5]} 8. Bh4 {[%clk
0:02:39]} 8... a5 {[%clk 0:02:41.5]} 9. Nd5 {[%clk 0:02:30]} 9... g5 {[%clk
0:02:40.9]} 10. Nxg5 {[%clk 0:01:41.2]} 10... hxg5 {[%clk 0:02:05]} 11. Bxg5
{[%clk 0:01:40.6]} 11... Nxe4 {[%clk 0:02:05.5]} 12. dxe4 {[%clk 0:01:13.6]}
12... Qxg5 {[%clk 0:02:04.9]} 13. Nxc7+ {[%clk 0:01:13.4]} 13... Kd8 {[%clk
0:01:45.1]} 14. Nxa8 {[%clk 0:01:09.9]} 14... Bg4 {[%clk 0:01:44.9]} 15. Be2
{[%clk 0:00:50.3]} 15... Be6 {[%clk 0:01:34.1]} 16. g3 {[%clk 0:00:46.1]} 16...
Kd7 {[%clk 0:01:30.4]} 17. b4 {[%clk 0:00:38.2]} 17... Bd4 {[%clk 0:01:29.8]}
18. b5 {[%clk 0:00:36.5]} 18... Ne7 {[%clk 0:01:28.3]} 19. Ra2 {[%clk
0:00:16.4]} 19... Rxa8 {[%clk 0:01:26.8]} 20. Qd2 {[%clk 0:00:12.2]} 20... Qg6
{[%clk 0:01:17.4]} 21. f4 {[%clk 0:00:10.6]} 21... Qxe4 {[%clk 0:01:16.7]} 22.
Rf1 {[%clk 0:00:09.4]} 22... Rh8 {[%clk 0:01:10.6]} 23. Qd3 {[%clk 0:00:08.9]}
23... Qxd3 {[%clk 0:00:58.9]} 24. Bxd3 {[%clk 0:00:09.8]} 24... f5 {[%clk
0:00:59.7]} 25. fxe5 {[%clk 0:00:08.1]} 25... dxe5 {[%clk 0:01:00.6]} 26. h4
{[%clk 0:00:05.9]} 26... e4 {[%clk 0:01:00.1]} 27. Be2 {[%clk 0:00:04.2]} 27...
Kc7 {[%clk 0:00:58.5]} 28. Rd2 {[%clk 0:00:04.4]} 28... Bc3 {[%clk 0:00:58.4]}
29. Kd1 {[%clk 0:00:04.9]} 29... Bxd2 {[%clk 0:00:58.4]} 30. Kxd2 {[%clk
0:00:05.8]} 30... Ng6 {[%clk 0:00:59]} 31. Ke3 {[%clk 0:00:05.8]} 31... Kd6
{[%clk 0:00:55.4]} 32. h5 {[%clk 0:00:06]} 32... Ne5 {[%clk 0:00:54.8]} 33. Rd1+
{[%clk 0:00:05.4]} 33... Kc5 {[%clk 0:00:54.4]} 34. Kf4 {[%clk 0:00:04.2]} 34...
Nxc4 {[%clk 0:00:51.5]} 35. Bxc4 {[%clk 0:00:02.8]} 35... Kxc4 {[%clk
0:00:52.4]} 36. Rd6 {[%clk 0:00:02.3]} 36... Bf7 {[%clk 0:00:48.7]} 37. h6
{[%clk 0:00:02.8]} 37... Kxb5 {[%clk 0:00:45.3]} 38. Kxf5 {[%clk 0:00:02.4]}
38... e3 {[%clk 0:00:45.3]} 39. Rd7 {[%clk 0:00:02.7]} 39... e2 {[%clk 0:00:43]}
40. Kg5 {[%clk 0:00:03.2]} 40... e1=Q {[%clk 0:00:42]} 41. Rxf7 {[%clk
0:00:04.1]} 41... Qe3+ {[%clk 0:00:41.5]} 42. Kf6 {[%clk 0:00:04.9]} 42... Qxh6+
{[%clk 0:00:41]} 43. Ke7 {[%clk 0:00:05.2]} 43... Qg5+ {[%clk 0:00:40.2]} 44.
Kd7 {[%clk 0:00:05.2]} 44... Rd8+ {[%clk 0:00:38.3]} 45. Kc7 {[%clk 0:00:05.6]}
45... b6 {[%clk 0:00:32.5]} 46. g4 {[%clk 0:00:05.8]} 46... Rd5 {[%clk
0:00:31.9]} 47. Kb7 {[%clk 0:00:03.5]} 47... Qxg4 {[%clk 0:00:31]} 48. Rc7
{[%clk 0:00:03.3]} 48... Rd7 {[%clk 0:00:29.4]} 49. a4+ {[%clk 0:00:04.2]} 49...
Kxa4 {[%clk 0:00:28.8]} 50. Ka6 {[%clk 0:00:03.4]} 50... Qe2+ {[%clk 0:00:27.5]}
51. Rc4+ {[%clk 0:00:03.1]} 51... Qxc4+ {[%clk 0:00:26.7]} 52. Kxb6 {[%clk
0:00:03.8]} 52... Qb5# {[%clk 0:00:26.9]} 0-1

[Event "*** SCC Grand Prix: Titled Tuesday Blitz"]
[Site "Chess.com"]
[Date "2020.08.25"]
[Round "2"]
[White "VladaSviridova"]
[Black "26andrej26"]
[Result "1-0"]
[WhiteElo "2303"]
[BlackElo "2614"]
[TimeControl "180+1"]
[EndTime "10:20:04 PDT"]
[Termination "VladaSviridova won on time"]

1. d4 {[%clk 0:03:00.6]} 1... Nf6 {[%clk 0:03:00]} 2. c4 {[%clk 0:03:00.8]} 2...
g6 {[%clk 0:03:00.5]} 3. Nc3 {[%clk 0:03:00.5]} 3... Bg7 {[%clk 0:03:01.4]} 4.
e4 {[%clk 0:03:00.8]} 4... d6 {[%clk 0:03:02.3]} 5. Nf3 {[%clk 0:03:01.1]} 5...
O-O {[%clk 0:03:02.6]} 6. Be2 {[%clk 0:03:01.4]} 6... e5 {[%clk 0:03:03.2]} 7.
O-O {[%clk 0:03:01.4]} 7... Nc6 {[%clk 0:03:03.6]} 8. d5 {[%clk 0:03:01.8]} 8...
Ne7 {[%clk 0:03:03.9]} 9. Ne1 {[%clk 0:03:01.9]} 9... Nd7 {[%clk 0:03:04.1]} 10.
Be3 {[%clk 0:03:02.1]} 10... f5 {[%clk 0:03:04.7]} 11. f3 {[%clk 0:03:02.3]}
11... f4 {[%clk 0:03:05.3]} 12. Bf2 {[%clk 0:03:02.7]} 12... g5 {[%clk
0:03:06.2]} 13. Nd3 {[%clk 0:03:02.3]} 13... Nf6 {[%clk 0:02:54.7]} 14. c5
{[%clk 0:03:00.7]} 14... Ne8 {[%clk 0:02:51.8]} 15. a4 {[%clk 0:02:47.6]} 15...
h5 {[%clk 0:02:48.9]} 16. a5 {[%clk 0:02:45.3]} 16... Ng6 {[%clk 0:02:05.8]} 17.
a6 {[%clk 0:01:47.6]} 17... b6 {[%clk 0:02:00.7]} 18. cxd6 {[%clk 0:01:46]}
18... Nxd6 {[%clk 0:01:44.1]} 19. Nb4 {[%clk 0:01:38.2]} 19... Rf7 {[%clk
0:01:41.8]} 20. Nb5 {[%clk 0:01:11.9]} 20... Bf8 {[%clk 0:01:29.3]} 21. Nc6
{[%clk 0:01:08.5]} 21... Qe8 {[%clk 0:01:28.9]} 22. Kh1 {[%clk 0:00:59.6]} 22...
Rg7 {[%clk 0:01:21]} 23. Nbxa7 {[%clk 0:00:57.3]} 23... g4 {[%clk 0:01:14.9]}
24. Nxc8 {[%clk 0:00:57]} 24... Qxc8 {[%clk 0:01:08.9]} 25. a7 {[%clk
0:00:53.2]} 25... g3 {[%clk 0:01:05.3]} 26. hxg3 {[%clk 0:00:52.5]} 26... fxg3
{[%clk 0:01:04.3]} 27. Bxg3 {[%clk 0:00:52.3]} 27... h4 {[%clk 0:00:58.4]} 28.
Bh2 {[%clk 0:00:51.9]} 28... Qe8 {[%clk 0:00:32.8]} 29. Rg1 {[%clk 0:00:47.7]}
29... Qf7 {[%clk 0:00:28.1]} 30. Nxe5 {[%clk 0:00:46.2]} 30... Nxe5 {[%clk
0:00:24.6]} 31. Bxe5 {[%clk 0:00:46]} 31... Rg3 {[%clk 0:00:25.1]} 32. Qe1
{[%clk 0:00:32.7]} 32... Qh5 {[%clk 0:00:19.8]} 33. Qc3 {[%clk 0:00:23.6]} 33...
Qh7 {[%clk 0:00:11.8]} 34. Rgf1 {[%clk 0:00:21.3]} 34... Qg6 {[%clk 0:00:09.9]}
35. Rg1 {[%clk 0:00:18.7]} 35... Qh7 {[%clk 0:00:05.3]} 36. Bd3 {[%clk
0:00:16.6]} 36... Qe7 {[%clk 0:00:02.2]} 37. Rge1 {[%clk 0:00:14.9]} 37... Qh7
{[%clk 0:00:01.6]} 38. Kg1 {[%clk 0:00:14]} 38... Qg6 {[%clk 0:00:02]} 39. Bxg3
{[%clk 0:00:14]} 39... hxg3 {[%clk 0:00:02.4]} 40. Kf1 {[%clk 0:00:14.1]} 40...
Qh5 {[%clk 0:00:02.6]} 41. Ke2 {[%clk 0:00:14.3]} 41... Bg7 {[%clk 0:00:02.8]}
42. Rh1 {[%clk 0:00:13.5]} 42... Qf7 {[%clk 0:00:02]} 43. Qc6 {[%clk 0:00:12.1]}
43... Qf8 {[%clk 0:00:02.2]} 44. Rh3 {[%clk 0:00:11.2]} 44... Nf7 {[%clk
0:00:02]} 45. Rah1 {[%clk 0:00:10.9]} 45... Qd8 {[%clk 0:00:02]} 46. Rxg3 {[%clk
0:00:10.9]} 46... Kf8 {[%clk 0:00:02.9]} 47. Rxg7 {[%clk 0:00:10.7]} 47... Kxg7
{[%clk 0:00:03.1]} 48. e5 {[%clk 0:00:10.9]} 48... Qg5 {[%clk 0:00:02.2]} 49.
Qf6+ {[%clk 0:00:10.3]} 49... Qxf6 {[%clk 0:00:02.1]} 50. Rh7+ {[%clk
0:00:10.2]} 1-0

[Event "*** SCC Grand Prix: Titled Tuesday Blitz"]
[Site "Chess.com"]
[Date "2020.08.25"]
[Round "2"]
[White "Manukyan_Artak"]
[Black "suyu28"]
[Result "0-1"]
[WhiteElo "2324"]
[BlackElo "2643"]
[TimeControl "180+1"]
[EndTime "10:20:04 PDT"]
[Termination "suyu28 won on time"]

1. e4 {[%clk 0:03:00.9]} 1... c6 {[%clk 0:02:59.7]} 2. d4 {[%clk 0:02:59.9]}
2... d5 {[%clk 0:02:59.2]} 3. e5 {[%clk 0:03:00.8]} 3... Bf5 {[%clk 0:02:58.7]}
4. c4 {[%clk 0:03:01.7]} 4... e6 {[%clk 0:02:57.8]} 5. Nc3 {[%clk 0:03:00.8]}
5... Ne7 {[%clk 0:02:57.2]} 6. Nf3 {[%clk 0:03:01.1]} 6... Bg6 {[%clk
0:02:55.4]} 7. Nh4 {[%clk 0:02:59.8]} 7... Nd7 {[%clk 0:02:55]} 8. cxd5 {[%clk
0:02:50.8]} 8... Nxd5 {[%clk 0:02:50.6]} 9. Nxg6 {[%clk 0:02:50.4]} 9... hxg6
{[%clk 0:02:48.5]} 10. g3 {[%clk 0:02:49.9]} 10... N7b6 {[%clk 0:02:47.5]} 11.
Bg2 {[%clk 0:02:48.9]} 11... Be7 {[%clk 0:02:45.9]} 12. O-O {[%clk 0:02:47.6]}
12... Qc7 {[%clk 0:02:44]} 13. Ne4 {[%clk 0:02:41.4]} 13... Rd8 {[%clk
0:02:42.2]} 14. Qe2 {[%clk 0:02:39.6]} 14... O-O {[%clk 0:02:33.2]} 15. Rd1
{[%clk 0:02:38.5]} 15... Rd7 {[%clk 0:02:33.4]} 16. Nc5 {[%clk 0:02:33.9]} 16...
Rdd8 {[%clk 0:02:25.2]} 17. h4 {[%clk 0:02:29.4]} 17... Nd7 {[%clk 0:02:24.9]}
18. Ne4 {[%clk 0:02:26]} 18... c5 {[%clk 0:02:25.1]} 19. dxc5 {[%clk 0:02:17.5]}
19... Nxc5 {[%clk 0:02:25.1]} 20. Nxc5 {[%clk 0:02:10.9]} 20... Qxc5 {[%clk
0:02:24.9]} 21. Bg5 {[%clk 0:02:09]} 21... Bxg5 {[%clk 0:02:23.3]} 22. hxg5
{[%clk 0:02:09.9]} 22... b6 {[%clk 0:02:14]} 23. Rac1 {[%clk 0:02:03.6]} 23...
Qe7 {[%clk 0:02:11.1]} 24. f4 {[%clk 0:01:59.1]} 24... Rd7 {[%clk 0:02:01.5]}
25. Bxd5 {[%clk 0:01:58]} 25... exd5 {[%clk 0:02:01]} 26. Qe3 {[%clk 0:01:41]}
26... Qb4 {[%clk 0:01:55.8]} 27. Qd4 {[%clk 0:01:39.1]} 27... Qb5 {[%clk
0:01:52.4]} 28. b3 {[%clk 0:01:27]} 28... Rfd8 {[%clk 0:01:51.7]} 29. Kf2 {[%clk
0:01:25.5]} 29... Qa5 {[%clk 0:01:50.9]} 30. Rc2 {[%clk 0:01:24.3]} 30... Qa3
{[%clk 0:01:43.6]} 31. g4 {[%clk 0:01:15.3]} 31... Qe7 {[%clk 0:01:40.9]} 32.
Kg3 {[%clk 0:01:13.7]} 32... Rc7 {[%clk 0:01:32.8]} 33. Rdc1 {[%clk 0:01:09.8]}
33... Rxc2 {[%clk 0:01:28.8]} 34. Rxc2 {[%clk 0:01:10.7]} 34... Qd7 {[%clk
0:01:29.2]} 35. a4 {[%clk 0:00:57.3]} 35... b5 {[%clk 0:01:27.4]} 36. a5 {[%clk
0:00:54.2]} 36... a6 {[%clk 0:01:27.3]} 37. Rc5 {[%clk 0:00:50.9]} 37... b4
{[%clk 0:01:22.8]} 38. Kf3 {[%clk 0:00:44.1]} 38... Qb7 {[%clk 0:01:22.1]} 39.
f5 {[%clk 0:00:39.8]} 39... gxf5 {[%clk 0:01:06.4]} 40. gxf5 {[%clk 0:00:40.7]}
40... Qe7 {[%clk 0:01:06.5]} 41. Kf4 {[%clk 0:00:39.9]} 41... Qd7 {[%clk
0:01:03]} 42. Rc2 {[%clk 0:00:15]} 42... g6 {[%clk 0:01:02.1]} 43. e6 {[%clk
0:00:12.6]} 43... fxe6 {[%clk 0:00:55.4]} 44. Rh2 {[%clk 0:00:07.3]} 44... Qd6+
{[%clk 0:00:35.6]} 45. Qe5 {[%clk 0:00:06.5]} 45... Qxe5+ {[%clk 0:00:26.2]} 46.
Kxe5 {[%clk 0:00:07.4]} 46... exf5 {[%clk 0:00:26.1]} 47. Kf6 {[%clk 0:00:03.9]}
47... d4 {[%clk 0:00:25.5]} 48. Rd2 {[%clk 0:00:02.1]} 48... d3 {[%clk
0:00:24.3]} 49. Kxg6 {[%clk 0:00:02]} 49... f4 {[%clk 0:00:24.8]} 50. Kf5 {[%clk
0:00:01.9]} 50... f3 {[%clk 0:00:25.3]} 51. Ke4 {[%clk 0:00:01]} 51... f2 {[%clk
0:00:25.7]} 52. Rxf2 {[%clk 0:00:01.2]} 52... d2 {[%clk 0:00:26.2]} 0-1

[Event "*** SCC Grand Prix: Titled Tuesday Blitz"]
[Site "Chess.com"]
[Date "2020.08.25"]
[Round "2"]
[White "Kobalia"]
[Black "Steven_Rojas"]
[Result "1-0"]
[WhiteElo "2769"]
[BlackElo "2505"]
[TimeControl "180+1"]
[EndTime "10:20:05 PDT"]
[Termination "Kobalia won on time"]

1. e4 {[%clk 0:03:00.9]} 1... e6 {[%clk 0:03:00.4]} 2. d3 {[%clk 0:02:58.4]}
2... d5 {[%clk 0:02:59.6]} 3. Nd2 {[%clk 0:02:59.3]} 3... c5 {[%clk 0:02:58]} 4.
Ngf3 {[%clk 0:02:59.5]} 4... Nc6 {[%clk 0:02:56.9]} 5. g3 {[%clk 0:02:59.9]}
5... g6 {[%clk 0:02:44.9]} 6. Bg2 {[%clk 0:03:00]} 6... Bg7 {[%clk 0:02:44.9]}
7. O-O {[%clk 0:03:00.5]} 7... Nge7 {[%clk 0:02:44.9]} 8. Re1 {[%clk 0:03:00.9]}
8... O-O {[%clk 0:02:45]} 9. c3 {[%clk 0:02:59.1]} 9... b5 {[%clk 0:02:41.5]}
10. exd5 {[%clk 0:02:28.8]} 10... Nxd5 {[%clk 0:02:08.1]} 11. Nb3 {[%clk
0:02:27.9]} 11... Qb6 {[%clk 0:02:05.1]} 12. a4 {[%clk 0:02:25.6]} 12... bxa4
{[%clk 0:01:52.7]} 13. Nbd2 {[%clk 0:02:20.6]} 13... Rd8 {[%clk 0:01:41.1]} 14.
Nc4 {[%clk 0:02:20]} 14... Qc7 {[%clk 0:01:30.1]} 15. Qxa4 {[%clk 0:02:19]}
15... Bb7 {[%clk 0:01:27]} 16. Nfd2 {[%clk 0:02:15.2]} 16... Nb6 {[%clk
0:01:19.3]} 17. Qc2 {[%clk 0:02:13.3]} 17... Rd7 {[%clk 0:01:16.2]} 18. Ne4
{[%clk 0:02:10.3]} 18... Ne7 {[%clk 0:01:09.4]} 19. Be3 {[%clk 0:01:47.3]} 19...
Bxe4 {[%clk 0:00:53.2]} 20. Bxe4 {[%clk 0:01:46]} 20... Rad8 {[%clk 0:00:53.7]}
21. Red1 {[%clk 0:01:27.7]} 21... Nf5 {[%clk 0:00:36.6]} 22. Bf4 {[%clk
0:01:25.2]} 22... e5 {[%clk 0:00:36.6]} 23. Bg5 {[%clk 0:01:24.7]} 23... f6
{[%clk 0:00:32.7]} 24. Qb3 {[%clk 0:01:03.5]} 24... Kh8 {[%clk 0:00:31.6]} 25.
Bc1 {[%clk 0:00:59]} 25... Nxc4 {[%clk 0:00:27.5]} 26. Qxc4 {[%clk 0:00:58.7]}
26... Nd6 {[%clk 0:00:28.1]} 27. Qa4 {[%clk 0:00:58.6]} 27... Nxe4 {[%clk
0:00:28.2]} 28. Qxe4 {[%clk 0:00:58.5]} 28... c4 {[%clk 0:00:22.9]} 29. Be3
{[%clk 0:00:31.7]} 29... f5 {[%clk 0:00:17.4]} 30. Qh4 {[%clk 0:00:29.9]} 30...
cxd3 {[%clk 0:00:15.7]} 31. Rxa7 {[%clk 0:00:28.5]} 31... Qc6 {[%clk 0:00:15.6]}
32. Rxd7 {[%clk 0:00:23.5]} 32... Rxd7 {[%clk 0:00:16.5]} 33. Bd2 {[%clk
0:00:21.4]} 33... Qf3 {[%clk 0:00:15.9]} 34. Ra1 {[%clk 0:00:20.6]} 34... h5
{[%clk 0:00:09.3]} 35. Qg5 {[%clk 0:00:20.2]} 35... Kh7 {[%clk 0:00:09.5]} 36.
Ra6 {[%clk 0:00:17]} 36... Qd1+ {[%clk 0:00:02.5]} 37. Kg2 {[%clk 0:00:16.5]}
37... Qg4 {[%clk 0:00:03.4]} 38. Rxg6 {[%clk 0:00:13.5]} 38... Bf8 {[%clk
0:00:01.4]} 39. h3 {[%clk 0:00:09.9]} 39... Qxg5 {[%clk 0:00:01.3]} 40. Rxg5
{[%clk 0:00:10.8]} 40... Rf7 {[%clk 0:00:01.4]} 41. Rxh5+ {[%clk 0:00:10.5]}
41... Kg6 {[%clk 0:00:02.3]} 42. Rg5+ {[%clk 0:00:10.4]} 42... Kf6 {[%clk
0:00:03.2]} 43. g4 {[%clk 0:00:10.3]} 43... f4 {[%clk 0:00:03.2]} 44. Rf5+
{[%clk 0:00:10.4]} 44... Ke6 {[%clk 0:00:03.7]} 45. Rxf7 {[%clk 0:00:10.6]}
45... Kxf7 {[%clk 0:00:04.3]} 46. Kf3 {[%clk 0:00:10.9]} 46... Bc5 {[%clk
0:00:04.4]} 47. b4 {[%clk 0:00:10.1]} 47... Ba7 {[%clk 0:00:04.1]} 48. c4 {[%clk
0:00:10.4]} 48... Ke6 {[%clk 0:00:04.6]} 49. Bc3 {[%clk 0:00:08.9]} 49... Kd6
{[%clk 0:00:01.5]} 50. h4 {[%clk 0:00:08.7]} 1-0

[Event "*** SCC Grand Prix: Titled Tuesday Blitz"]
[Site "Chess.com"]
[Date "2020.08.25"]
[Round "2"]
[White "WonderChampion"]
[Black "Fischerev7"]
[Result "0-1"]
[WhiteElo "1977"]
[BlackElo "2363"]
[TimeControl "180+1"]
[EndTime "10:20:08 PDT"]
[Termination "Fischerev7 won by resignation"]

1. d4 {[%clk 0:03:00.9]} 1... Nf6 {[%clk 0:02:55.3]} 2. Bg5 {[%clk 0:02:59.7]}
2... d5 {[%clk 0:02:53.7]} 3. Nd2 {[%clk 0:02:57.3]} 3... e6 {[%clk 0:02:53.1]}
4. e3 {[%clk 0:02:53.5]} 4... Nbd7 {[%clk 0:02:51.7]} 5. Ngf3 {[%clk 0:02:50.6]}
5... c5 {[%clk 0:02:51.6]} 6. c4 {[%clk 0:02:35.9]} 6... cxd4 {[%clk 0:02:43.8]}
7. Nxd4 {[%clk 0:02:32.4]} 7... dxc4 {[%clk 0:02:41.3]} 8. Bxc4 {[%clk
0:02:33.3]} 8... Qa5 {[%clk 0:02:40.2]} 9. Bf4 {[%clk 0:02:28.5]} 9... Bb4
{[%clk 0:02:19]} 10. Nb3 {[%clk 0:02:26.1]} 10... Bxd2+ {[%clk 0:02:07.2]} 11.
Qxd2 {[%clk 0:02:27]} 11... Qxd2+ {[%clk 0:02:06.7]} 12. Nxd2 {[%clk 0:02:24.5]}
12... O-O {[%clk 0:01:59.2]} 13. O-O {[%clk 0:02:23.1]} 13... Nb6 {[%clk
0:01:59.3]} 14. Bb3 {[%clk 0:02:20.7]} 14... Bd7 {[%clk 0:01:59.6]} 15. Nc4
{[%clk 0:02:20.2]} 15... Nxc4 {[%clk 0:01:59.2]} 16. Bxc4 {[%clk 0:02:21.1]}
16... Bc6 {[%clk 0:01:59]} 17. Rfd1 {[%clk 0:02:18.7]} 17... Rfd8 {[%clk
0:01:58.9]} 18. Kf1 {[%clk 0:02:15.7]} 18... Rac8 {[%clk 0:01:52.3]} 19. Be2
{[%clk 0:02:12.6]} 19... Kf8 {[%clk 0:01:49.8]} 20. f3 {[%clk 0:02:09.4]} 20...
Ke7 {[%clk 0:01:49.8]} 21. Rac1 {[%clk 0:02:05.2]} 21... Nd5 {[%clk 0:01:49.5]}
22. Kf2 {[%clk 0:01:58.7]} 22... Nxf4 {[%clk 0:01:33.7]} 23. exf4 {[%clk
0:01:59.6]} 23... Bd5 {[%clk 0:01:31.3]} 24. b3 {[%clk 0:01:56]} 24... Rxc1
{[%clk 0:01:21.5]} 25. Rxc1 {[%clk 0:01:54.9]} 25... Kd7 {[%clk 0:01:21.4]} 26.
Bb5+ {[%clk 0:01:52.7]} 26... Kd6 {[%clk 0:01:17.6]} 27. Ke3 {[%clk 0:01:50.1]}
27... a6 {[%clk 0:01:17.9]} 28. Bc4 {[%clk 0:01:47.6]} 28... Rc8 {[%clk
0:01:16.3]} 29. Rd1 {[%clk 0:01:43]} 29... b5 {[%clk 0:01:07.3]} 30. Bxd5 {[%clk
0:01:37.1]} 30... exd5 {[%clk 0:01:08.2]} 31. Rd2 {[%clk 0:01:36.2]} 31... Rc3+
{[%clk 0:01:02.8]} 32. Ke2 {[%clk 0:01:35.3]} 32... Rc1 {[%clk 0:01:03.4]} 33.
Kf2 {[%clk 0:01:25.2]} 33... Kc5 {[%clk 0:00:56.9]} 34. Ke3 {[%clk 0:01:22.6]}
34... Rc3+ {[%clk 0:00:44.3]} 35. Kf2 {[%clk 0:01:20.2]} 35... d4 {[%clk
0:00:44.3]} 36. Ke2 {[%clk 0:01:17.4]} 36... Rc1 {[%clk 0:00:43.5]} 37. Kd3
{[%clk 0:01:13.7]} 37... Rc3+ {[%clk 0:00:40.8]} 38. Ke2 {[%clk 0:01:12.9]}
38... f6 {[%clk 0:00:36.9]} 39. g3 {[%clk 0:01:07.7]} 39... Re3+ {[%clk
0:00:35.5]} 40. Kf2 {[%clk 0:01:06.3]} 40... Rc3 {[%clk 0:00:33.4]} 41. Ke2
{[%clk 0:01:05.8]} 41... h5 {[%clk 0:00:33.2]} 42. Kf2 {[%clk 0:00:59.7]} 42...
Rc1 {[%clk 0:00:26.5]} 43. g4 {[%clk 0:00:53.2]} 43... h4 {[%clk 0:00:20.6]} 44.
h3 {[%clk 0:00:46.9]} 44... Kd5 {[%clk 0:00:19.1]} 45. Kg2 {[%clk 0:00:38.4]}
45... Rc3 {[%clk 0:00:17.8]} 46. Kf2 {[%clk 0:00:28.6]} 46... Rc1 {[%clk
0:00:17.3]} 47. Kg2 {[%clk 0:00:18.6]} 47... a5 {[%clk 0:00:17.6]} 48. Kf2
{[%clk 0:00:18.5]} 48... a4 {[%clk 0:00:17.8]} 49. bxa4 {[%clk 0:00:19.4]} 49...
bxa4 {[%clk 0:00:18.7]} 50. Kg2 {[%clk 0:00:15.4]} 50... Kc4 {[%clk 0:00:18.5]}
51. Kf2 {[%clk 0:00:15.2]} 51... Kc3 {[%clk 0:00:18.8]} 52. Re2 {[%clk
0:00:15.5]} 52... Rc2 {[%clk 0:00:16.8]} 53. Rxc2+ {[%clk 0:00:13.7]} 53... Kxc2
{[%clk 0:00:17.7]} 54. a3 {[%clk 0:00:14.6]} 54... d3 {[%clk 0:00:18]} 55. Ke1
{[%clk 0:00:14]} 55... d2+ {[%clk 0:00:18.3]} 56. Ke2 {[%clk 0:00:14.9]} 56...
d1=Q+ {[%clk 0:00:19.2]} 0-1

[Event "*** SCC Grand Prix: Titled Tuesday Blitz"]
[Site "Chess.com"]
[Date "2020.08.25"]
[Round "2"]
[White "AnonymousIM2023"]
[Black "Bigfish1995"]
[Result "0-1"]
[WhiteElo "2595"]
[BlackElo "3065"]
[TimeControl "180+1"]
[EndTime "10:20:10 PDT"]
[Termination "Bigfish1995 won by resignation"]

1. d4 {[%clk 0:03:00.9]} 1... d5 {[%clk 0:02:59.5]} 2. c4 {[%clk 0:03:00.7]}
2... e6 {[%clk 0:02:59.9]} 3. Nc3 {[%clk 0:03:01]} 3... a6 {[%clk 0:02:56.6]} 4.
cxd5 {[%clk 0:02:59.2]} 4... exd5 {[%clk 0:02:56.8]} 5. Nf3 {[%clk 0:02:45]}
5... c6 {[%clk 0:02:51.1]} 6. e4 {[%clk 0:02:40.2]} 6... dxe4 {[%clk 0:02:48.4]}
7. Nxe4 {[%clk 0:02:41.1]} 7... Bf5 {[%clk 0:02:48.3]} 8. Bd3 {[%clk 0:02:39.1]}
8... Bb4+ {[%clk 0:02:45.4]} 9. Bd2 {[%clk 0:02:36.4]} 9... Bxd2+ {[%clk
0:02:45.3]} 10. Qxd2 {[%clk 0:02:37.3]} 10... Bxe4 {[%clk 0:02:44.1]} 11. Bxe4
{[%clk 0:02:37.2]} 11... Nf6 {[%clk 0:02:44.7]} 12. Bc2 {[%clk 0:02:33.6]} 12...
O-O {[%clk 0:02:44.7]} 13. O-O {[%clk 0:02:33.6]} 13... Nbd7 {[%clk 0:02:44.7]}
14. Rad1 {[%clk 0:02:28.5]} 14... Qc7 {[%clk 0:02:40]} 15. Bb3 {[%clk
0:02:23.1]} 15... Nb6 {[%clk 0:02:36.4]} 16. Ne5 {[%clk 0:02:22.6]} 16... Rad8
{[%clk 0:02:35.5]} 17. Rfe1 {[%clk 0:02:21.7]} 17... Nbd5 {[%clk 0:02:28.8]} 18.
Qg5 {[%clk 0:01:47.2]} 18... h6 {[%clk 0:02:14.4]} 19. Qh4 {[%clk 0:01:43.1]}
19... Qa5 {[%clk 0:01:37.2]} 20. h3 {[%clk 0:01:28.9]} 20... Rfe8 {[%clk
0:01:19.2]} 21. Re2 {[%clk 0:01:22.4]} 21... Nh7 {[%clk 0:00:57.7]} 22. Rde1
{[%clk 0:01:00.6]} 22... Ng5 {[%clk 0:00:43.3]} 23. f4 {[%clk 0:00:54.8]} 23...
Ne6 {[%clk 0:00:34.8]} 24. f5 {[%clk 0:00:39.2]} 24... Nef4 {[%clk 0:00:34.1]}
25. Re4 {[%clk 0:00:28.2]} 25... Qd2 {[%clk 0:00:34.1]} 26. Qf2 {[%clk
0:00:14.3]} 26... Qxf2+ {[%clk 0:00:31.1]} 27. Kxf2 {[%clk 0:00:15.2]} 27... Kf8
{[%clk 0:00:21.7]} 28. Kf3 {[%clk 0:00:13.5]} 28... Rxe5 {[%clk 0:00:19.3]} 29.
dxe5 {[%clk 0:00:12.2]} 29... Nd3 {[%clk 0:00:19.9]} 30. Rd1 {[%clk 0:00:08.6]}
30... Nc5 {[%clk 0:00:19.3]} 31. Red4 {[%clk 0:00:06.8]} 31... Nxb3 {[%clk
0:00:19.6]} 32. axb3 {[%clk 0:00:07.7]} 32... g6 {[%clk 0:00:19.8]} 33. g4
{[%clk 0:00:07.6]} 33... Ke7 {[%clk 0:00:19.2]} 34. Ke4 {[%clk 0:00:07.3]} 34...
h5 {[%clk 0:00:18.8]} 35. fxg6 {[%clk 0:00:07]} 35... hxg4 {[%clk 0:00:17.8]}
36. g7 {[%clk 0:00:05.2]} 36... gxh3 {[%clk 0:00:17]} 37. Rh1 {[%clk 0:00:03.5]}
37... Rg8 {[%clk 0:00:17]} 38. Rxh3 {[%clk 0:00:02.9]} 38... Rxg7 {[%clk
0:00:17.5]} 39. Rf3 {[%clk 0:00:01.9]} 39... Rg2 {[%clk 0:00:16.8]} 40. Kd3
{[%clk 0:00:01.2]} 40... Rxb2 {[%clk 0:00:16.8]} 41. Kc4 {[%clk 0:00:01.8]}
41... b5+ {[%clk 0:00:12.7]} 42. Kc5 {[%clk 0:00:01.7]} 42... Rc2+ {[%clk
0:00:13]} 43. Rc4 {[%clk 0:00:02.2]} 43... bxc4 {[%clk 0:00:13.2]} 44. bxc4
{[%clk 0:00:02.7]} 44... Nc7 {[%clk 0:00:13.3]} 45. Kxc6 {[%clk 0:00:03.1]}
45... Rxc4+ {[%clk 0:00:12.9]} 46. Kb6 {[%clk 0:00:03.7]} 46... Nd5+ {[%clk
0:00:09.9]} 47. Kxa6 {[%clk 0:00:03.7]} 47... Re4 {[%clk 0:00:10.1]} 48. Kb5
{[%clk 0:00:03.1]} 48... Rxe5 {[%clk 0:00:10.3]} 49. Kc4 {[%clk 0:00:03.7]}
49... Nc7 {[%clk 0:00:09.5]} 50. Rf1 {[%clk 0:00:04]} 50... Ne6 {[%clk
0:00:09.3]} 51. Rd1 {[%clk 0:00:03.6]} 51... f5 {[%clk 0:00:09.5]} 52. Ra1
{[%clk 0:00:03.9]} 52... f4 {[%clk 0:00:09.7]} 0-1